[Event "Polish University-ch Teams 2024"]
[Site "Lublin"]
[Date "2024.02.24"]
[Round "4.6"]
[White "Kubicka, Anna"]
[Black "Pisarek, Elzbieta"]
[Result "1-0"]
[ECO "B52"]
[WhiteElo "2278"]
[BlackElo "1754"]
[Annotator "TA"]
[PlyCount "179"]
[EventDate "2024.02.22"]
[EventType "team-tourn"]
[EventCountry "POL"]
[SourceTitle "playchess.com"]
[Source "ChessBase"]
[SourceQuality "1"]
[TimeControl "900+5"]

{[%evp 19,179,18,24,14,30,11,27,21,12,0,34,37,65,54,66,66,58,66,70,35,42,0,38,25,82,35,89,56,72,70,69,37,57,63,104,46,120,88,123,87,91,41,34,54,92,0,0,0,0,0,0,0,23,0,0,0,0,-56,140,-41,203,0,0,0,0,-545,-506,-643,-637,-628,-605,-625,-625,-586,-77,-84,0,-607,-602,-627,-591,-594,-566,-558,-549,-712,-695,-1773,-1345,-1318,-1739,-1146,-1721,-1481,-1097,-5741,-29979,-29980,-29980,-29980,-29977,-29988,-29989,-29992,-2252,-29989,-5106,-5297,-1887,-993,0,0,0,-1313,-1219,-1755,-992,-1207,-469,-481,-432,-412,-233,-249,-177,-214,0,0,0,-8,-55,516,384,0,0,0,0,0,0,0,0,0,0,0,0,0,0,0,0,0,29958,11434,8697,3929,0,0,29979,29980,29980,29981,29985,29986]} 1. e4 {[%emt 0:00:02]} c5 {[%emt 0:00:03]} 2. Nf3 {[%emt 0:00:01]} d6 {[%emt 0:00:04]} 3. Bb5+ {[%emt 0:00:01]} Bd7 {[%emt 0:00:05]} 4. Bxd7+ {[%emt 0:00:03]} Qxd7 {[%emt 0:00:03]} 5. c4 {[%emt 0:00:01]} Nc6 {[%emt 0:00:13]} 6. d4 {[%emt 0:00:02]} cxd4 {[%emt 0:00:03]} 7. Nxd4 {[%emt 0:00:02]} Nf6 {[%emt 0:00:07]} 8. Nc3 {[%emt 0:00:02]} g6 {[%emt 0:00:08]} 9. f3 {[%emt 0:00:05]} Bg7 {[%emt 0:00:03]} 10. Be3 {[%emt 0:00:02]} O-O {[%emt 0:00:31]} 11. Qd3 {[%emt 0:00:02]} Ne5 {[%emt 0:00:31]} 12. Qe2 {[%emt 0:00:03]} Rac8 {[%emt 0:00:41]} 13. b3 {[%emt 0:00:03] Weiß hat minimalen Vorteil.} a6 {[%emt 0:02:14][%cal Ob7b5]} 14. Rc1 {[%emt 0:00:04]} Rfd8 {[%emt 0:00:51][%cal Ob7b5]} 15. O-O {[%emt 0:00:06]} h5 {[%emt 0:00:49]} 16. Rfd1 {[%emt 0:00:16]} Qe8 {[%emt 0:00:47]} 17. h3 {[%emt 0:02:49]} e6 {[%emt 0:02:38]} 18. f4 {[%emt 0:00:10]} Nc6 {[%emt 0:00:09]} 19. Nxc6 {[%emt 0:00:47]} Qxc6 {[%emt 0:01:58]} 20. Bf2 {[%emt 0:00:56]} Re8 {[%emt 0:00:57]} 21. Qd3 {[%emt 0:02:09]} Rcd8 {[%emt 0:00:36]} (21... b5 $11) 22. Qf3 {[%emt 0:00:10]} (22. Bh4 $16) 22... Kh7 {[%emt 0:00:51]} (22... b5 $14) 23. Bd4 {[%emt 0:00:59]} Nd7 {[%emt 0:00:42]} 24. Bxg7 {[%emt 0:01:18]} Kxg7 {[%emt 0:00:01]} 25. Qd3 {[%emt 0:00:24]} Nc5 {[%emt 0:00:36]} 26. Qe3 {[%emt 0:02:06]} Kh7 {[%emt 0:00:49]} 27. Kh1 {[%emt 0:01:05]} ({Vorzuziehen ist} 27. Rd4 $16) 27... Nd7 {[%emt 0:00:27]} (27... f5 $14) 28. Qd4 {[%emt 0:00:14]} Nf8 {[%emt 0:00:19]} 29. Qf6 {[%emt 0:00:09]} Kg8 {[%emt 0:00:03]} 30. e5 {[%emt 0:01:10] Weiß steht deutlich aktiver.} ({Weiss braucht} 30. f5 $16) 30... Nh7 $14 {[%emt 0:00:09]} 31. Qh4 {[%emt 0:00:04][%cal Oc4c5]} Qc7 {[%emt 0:00:04]} 32. Ne4 {[%emt 0:00:46]} (32. Qg3 $16) 32... dxe5 $11 {[%emt 0:00:02]} 33. fxe5 {[%emt 0:00:03]} Rxd1+ {[%emt 0:00:05]} 34. Rxd1 {[%emt 0:00:03] Rd6 wäre nun fies.} Qxe5 {[%emt 0:00:03]} 35. Nd6 {[%emt 0:00:22]} Rf8 {[%emt 0:00:02]} 36. Qf2 {[%emt 0:00:20][%mdl 1024] Weiss hat Kompensation.} b5 {[%emt 0:00:10]} 37. c5 {[%emt 0:00:04]} Nf6 {[%emt 0:00:06]} 38. Re1 {[%emt 0:00:35]} (38. c6 $11 Nd5 39. Qc5) 38... Qg5 $2 {[%emt 0:00:08] [#]} (38... Qc3 $15) 39. Rf1 $2 {[%emt 0:00:18]} (39. h4 $1 $16 {[%cal Rh4g5]} Ng4 40. Qxf7+ Rxf7 41. hxg5) 39... Nh7 {[%emt 0:00:03]} (39... Nd5 $1 $15 {bleibt weiter vorne.}) 40. c6 $2 {[%emt 0:00:17]} (40. Nxf7 $18 Qe7 41. c6) 40... Qd5 {[%emt 0:00:03][%csl LRc6,LRd6]} 41. Nxf7 {[%emt 0:00:04]} Qxc6 {[%emt 0:00:03]} 42. Qb2 $2 {[%emt 0:00:12][%mdl 8192] Verhindert Qc7.} Rxf7 $19 {[%emt 0:00:04]} 43. Rxf7 {[%emt 0:00:01]} Kxf7 {[%emt 0:00:01]} 44. Qf2+ {[%emt 0:00:06]} Ke7 {[%emt 0:00:02]} 45. Qa7+ {[%emt 0:00:03]} Qd7 {[%emt 0:00:02]} 46. Qc5+ {[%emt 0:00:01]} Qd6 $2 {[%emt 0:00:01]} (46... Kf7 $19 47. Qe5 Nf6) 47. Qa7+ $17 {[%emt 0:00:01]} Qd7 {[%emt 0:00:01]} 48. Qc5+ {[%emt 0:00:01]} Kf7 {[%emt 0:00:02]} 49. Qb6 {[%emt 0:00:02]} Qc8 {[%emt 0:00:04]} 50. Qa7+ {[%emt 0:00:02]} Kg8 {[%emt 0:00:02]} 51. Qe7 {[%emt 0:00:04]} Nf8 {[%emt 0:00:21]} 52. Qa7 {[%emt 0:00:09]} e5 {[%emt 0:00:17]} 53. Qe7 {[%emt 0:00:19]} Qe6 {[%emt 0:00:06]} 54. Qc5 {[%emt 0:00:04]} e4 {[%emt 0:00:03]} 55. Qe3 {[%emt 0:00:00]} Nd7 {[%emt 0:00:08]} 56. Kg1 {[%emt 0:00:02]} Nf6 {[%emt 0:00:02] ...Nd5 ist eine echte Drohung.} 57. Qa7 {[%emt 0:00:14]} e3 {[%emt 0:00:05]} 58. Qb8+ {[%emt 0:00:06]} Kh7 {[%emt 0:00:02]} 59. Qc7+ {[%emt 0:00:02]} Kh6 {[%emt 0:00:11]} 60. Qf4+ {[%emt 0:00:05]} g5 {[%emt 0:00:03]} 61. Qb8 {[%emt 0:00:05]} Qe8 {[%emt 0:00:10]} (61... e2 $142 62. Qf8+ Kg6 63. Qb4 e1=Q+ (63... e1=B $2 64. Qc5 $19) (63... e1=R+ 64. Qxe1 Qxe1+ 65. Kh2 h4 66. a3 Ne4 67. a4 Nf2 68. axb5 Qh1#) 64. Qxe1 Qxe1+ 65. Kh2 h4 (65... Qe5+ 66. Kg1 g4 67. g3 Qe1+ 68. Kh2 Ne4 69. hxg4 Qxg3+ 70. Kh1 Nf2#) 66. a3 Ne4 67. a4 Nf2 68. axb5 Qh1#) 62. Qb6 {[%emt 0:00:05]} Kg7 {[%emt 0:00:02]} (62... Qe5 $142 63. Kf1 Qf5+ 64. Kg1 e2 65. Qf2 Qb1+ 66. Kh2 Qf1 (66... e1=B 67. Qxf6+ Kh7 68. Qf7+ Kh6 69. Qf6+ Qg6 70. Qh8+ Qh7 71. Qf6+ Qg6 72. Qh8+ Qh7 73. Qf6+ Qg6 $11) 67. Qg3 e1=Q (67... e1=R {ist ein Selbstmatt.} 68. Qxe1 Qxe1 69. a4 g4 70. hxg4 Nxg4+ 71. Kh3 Kg5 72. axb5 Qh4#) 68. Qxe1 Qxe1 69. a4 Ne4 (69... Qe5+ {wird mattgesetzt.} 70. Kg1 g4 71. g3 Qe1+ 72. Kh2 gxh3 73. axb5 Ng4+ 74. Kxh3 Qh1#) 70. axb5 h4 (70... Qg3+ 71. Kh1 Qe1+ 72. Kh2 h4 73. bxa6 Ng3 74. a7 Qh1#) (70... axb5 71. b4 Ng3 72. h4 gxh4 73. Kh3 Qh1#) 71. bxa6 Ng3 72. a7 Qh1#) 63. Kf1 {[%emt 0:00:03]} e2+ {[%emt 0:00:04]} 64. Ke1 {[%emt 0:00:01]} Nd5 $2 {[%emt 0:00:09]} (64... Qe4 $19 65. Qa7+ Kg6) 65. Qd4+ $11 {[%emt 0:00:02]} Nf6 {[%emt 0:00:02]} 66. Qa7+ $4 {[%emt 0:00:02][%mdl 8192]} (66. Qb6 $11 Qe4 67. Qc7+ Kg6 68. Qg3) 66... Kg6 $19 {[%emt 0:00:01] Droht stark ...Qe4.} 67. Qxa6 {[%emt 0:00:02]} Qe5 {[%emt 0:00:06]} 68. Qc6 {[%emt 0:00:09]} Kg7 {[%emt 0:00:08]} (68... Qa1+ $142 69. Kxe2 Qxa2+ 70. Ke1 Qxb3) 69. Qb7+ {[%emt 0:00:06]} Kf8 {[%emt 0:00:03] Droht ...Qa1+ und aus.} 70. Qc8+ {[%emt 0:00:04]} Qe8 {[%emt 0:00:04]} (70... Ke7 $142 71. Qb7+ Kf8) 71. Qf5 {[%emt 0:00:04]} Qe7 {[%emt 0:00:08]} 72. Qxg5 {[%emt 0:00:04]} Kf7 $2 {[%emt 0:00:03]} (72... b4 $19 {Weiss muss nun ...Kf7 beachten.} 73. Qf4 Kg7 74. Qg5+ Kf7) 73. Qxb5 $11 {[%emt 0:00:05]} Kg6 {[%emt 0:00:08]} 74. Qxe2 {[%emt 0:00:03]} Qxe2+ $4 {[%emt 0:00:07][%mdl 8192]} (74... Ne4 $11 {und Schwarz steht sicher.} 75. Qc2 Qe5) 75. Kxe2 {[%emt 0:00:02][%mdl 4096] Endspiel. KN-KP} Kf5 {[%emt 0:00:03] [#]} 76. g4+ $2 {[%emt 0:00:09]} hxg4 {[%emt 0:00:02]} 77. hxg4+ {[%emt 0:00:01]} Kxg4 {[%emt 0:00:01] KN-KPP} 78. Kd3 {[%emt 0:00:03]} Kf5 {[%emt 0:00:02]} 79. Kc4 {[%emt 0:00:01]} Ke6 {[%emt 0:00:01]} 80. Kc5 {[%emt 0:00:01]} Kd7 {[%emt 0:00:03]} 81. Kb6 {[%emt 0:00:03]} Nd5+ {[%emt 0:00:02]} 82. Kb7 {[%emt 0:00:04]} Nb4 {[%emt 0:00:08]} 83. a3 {[%emt 0:00:05]} Nc2 {[%emt 0:00:04]} 84. a4 {[%emt 0:00:04] Weiss will mit a5 Matt setzen.} Nb4 $2 {[%emt 0:00:02][%mdl 8192]} (84... Nd4 $11) 85. a5 {[%emt 0:00:02]} Kd6 {[%emt 0:00:13]} 86. a6 {[%emt 0:00:04]} Nxa6 {[%emt 0:00:17]} 87. Kxa6 {[%emt 0:00:01] jetzt b4 und aus.} Kc5 $2 {[%emt 0:00:06][%mdl 8192]} (87... Kc6 $11 88. b4 Kc7 89. b5 Kb8 90. Kb6 Kc8 91. Ka7 Kd8 92. b6 Ke7) 88. Ka5 {[%emt 0:00:01] Weiß setzt Matt.} Kc6 {[%emt 0:00:04]} 89. b4 {[%emt 0:00:18]} Kc7 {[%emt 0:00:06]} 90. Ka6 {[%emt 0:00:05] Ein Albtraum für Schwarz.   Gewichteter Fehlerwert: Weiß=0.47/Schwarz=0.56.  Verlustzug:     	Weiß=2     	Schwarz=3     Gewinn verpasst:   	Weiß=2     	Schwarz=1     Fehler:       	Weiß=6     	Schwarz=5     Ungenau:       	Weiß=6     	Schwarz=6     OK:         	Weiß=15    	Schwarz=18    Bester:       	Weiß=3     	Schwarz=5} 1-0

[Event "Polish University-ch Teams 2024"]
[Site "Lublin"]
[Date "2024.02.24"]
[Round "4.7"]
[White "Baum, Jonasz"]
[Black "Kosakowski, Jakub"]
[Result "1-0"]
[ECO "D38"]
[WhiteElo "2400"]
[BlackElo "2482"]
[Annotator "TA"]
[PlyCount "161"]
[EventDate "2024.02.22"]
[EventType "team-tourn"]
[EventCountry "POL"]
[SourceTitle "playchess.com"]
[Source "ChessBase"]
[SourceQuality "1"]
[TimeControl "900+5"]

{[%evp 49,161,104,96,97,94,91,91,89,91,91,89,90,85,76,92,85,92,85,92,92,93,92,99,89,95,95,124,94,124,124,123,118,120,91,131,107,114,114,114,83,74,62,195,168,422,422,475,475,1144,144,29948,29951,29954,29955,29960,29961,29961,29962,29962,29963,29962,0,29960,29965,29966,29966,29966,29963,29964,29964,29962,29961,29962,0,29967,29967,29969,29970,29970,29971,29970,29971,29969,29966,29973,29974,29974,29975,29974,29975,29975,29974,29975,29975,29975,29976,29981,29982,29982,29983,29983,29984,29984,29985,29986,29981,29981,29982,29986,29979,29984,29978,29988,29989]} 1. d4 {[%emt 0:00:01]} d5 {[%emt 0:00:09]} 2. c4 {[%emt 0:00:01]} e6 {[%emt 0:00:02]} 3. Nf3 {[%emt 0:00:05]} Nf6 {[%emt 0:00:03]} 4. Nc3 {[%emt 0:00:02]} Bb4 {[%emt 0:00:03]} 5. cxd5 {[%emt 0:00:28]} exd5 {[%emt 0:00:03]} 6. Bg5 {[%emt 0:00:01]} h6 {[%emt 0:00:12]} 7. Bxf6 {[%emt 0:00:02]} Qxf6 {[%emt 0:00:03]} 8. Qa4+ {[%emt 0:00:01]} Nc6 {[%emt 0:00:02]} 9. e3 {[%emt 0:00:02]} O-O {[%emt 0:00:14]} 10. Rc1 {[%emt 0:00:01]} Rd8 {[%emt 0:01:38]} 11. Be2 {[%emt 0:00:03]} a6 {[%emt 0:00:27]} 12. O-O {[%emt 0:00:13]} Bf5 {[%emt 0:01:15]} 13. Qb3 {[%emt 0:03:56]} Qd6 {[%emt 0:03:45]} 14. Na4 {[%emt 0:00:21]} Na5 {[%emt 0:01:03]} 15. Qd1 {[%emt 0:00:11]} Nc4 {[%emt 0:00:58]} 16. a3 {[%emt 0:02:34]} b5 {[%emt 0:00:03]} 17. axb4 {[%emt 0:00:30]} bxa4 {[%emt 0:00:02]} 18. Bxc4 {[%emt 0:00:01]} dxc4 {[%emt 0:00:02]} 19. Rxc4 {[%emt 0:00:01]} Rab8 {[%emt 0:00:13]} 20. Ne5 {[%emt 0:01:00]} Be6 {[%emt 0:00:34]} 21. Rc6 {[%emt 0:01:18]} Qxb4 {[%emt 0:00:12]} 22. Rxa6 {[%emt 0:00:03]} Qb5 {[%emt 0:02:44]} 23. Qxa4 {[%emt 0:00:17]} Qxa4 {[%emt 0:00:06]} 24. Rxa4 {[%emt 0:00:01]} Rxb2 {[%emt 0:00:02]} 25. Ra5 {[%emt 0:01:03]} Rc2 {[%emt 0:00:47]} 26. h3 {[%emt 0:00:12]} c5 {[%emt 0:00:15]} 27. Rxc5 {[%emt 0:00:48]} Rxc5 {[%emt 0:00:02]} 28. dxc5 {[%emt 0:00:01]} Rd5 {[%emt 0:00:02]} 29. Nf3 {[%emt 0:00:09]} Rxc5 {[%emt 0:00:02]} 30. Nd4 {[%emt 0:00:01]} Bd7 {[%emt 0:00:10]} 31. Rb1 {[%emt 0:00:02]} Kf8 {[%emt 0:00:02]} 32. Kh2 {[%emt 0:00:09]} Ke7 {[%emt 0:00:02]} 33. Rb7 {[%emt 0:00:08]} g6 {[%emt 0:00:03]} 34. Kg3 {[%emt 0:00:38]} Rd5 {[%emt 0:00:20]} 35. Ra7 {[%emt 0:00:09]} Kf6 {[%emt 0:00:06]} 36. Ne2 {[%emt 0:00:13]} Kg7 {[%emt 0:00:14]} 37. h4 {[%emt 0:00:11]} Rd6 {[%emt 0:01:35]} 38. f3 {[%emt 0:00:08]} Bb5 {[%emt 0:00:20]} 39. Nd4 {[%emt 0:00:04]} Bc4 {[%emt 0:00:02]} 40. Rc7 {[%emt 0:00:04]} Be6 {[%emt 0:00:09]} 41. Kf4 {[%emt 0:00:08]} Ra6 {[%emt 0:00:07]} 42. Rc6 {[%emt 0:00:46]} Rxc6 {[%emt 0:00:06]} 43. Nxc6 {[%emt 0:00:01]} Kf6 {[%emt 0:00:01]} 44. Nd4 {[%emt 0:00:33]} Bc8 {[%emt 0:00:06]} 45. Ke4 {[%emt 0:00:23]} h5 {[%emt 0:00:14] [#]} ({Black should play} 45... g5 $14) 46. Kd5 $1 $18 {[%emt 0:00:07]} Bb7+ $2 {[%emt 0:00:04]} (46... Ke7 47. Nc6+ Kd7 48. Ne5+ Ke7) 47. Kd6 $18 {[%emt 0:00:01]} Ba6 {[%emt 0:00:01]} 48. e4 {[%emt 0:00:05]} Bf1 {[%emt 0:00:05]} (48... g5 $142 49. g3 gxh4 50. gxh4 Bd3) 49. g3 $2 {[%emt 0:00:05]} (49. e5+ $18 Kg7 50. g3) 49... Bg2 $2 {[%emt 0:00:03][%mdl 8192]} (49... g5 $16 50. f4 gxf4) 50. e5+ {[%emt 0:00:05]} Kg7 {[%emt 0:00:01]} 51. Ke7 {[%emt 0:00:01]} Bh1 {[%emt 0:00:18]} 52. e6 {[%emt 0:00:54]} fxe6 {[%emt 0:00:02]} 53. Nxe6+ {[%emt 0:00:01]} Kh6 {[%emt 0:00:01]} 54. Ng5 {[%emt 0:00:02]} Kg7 {[%emt 0:00:02]} 55. Ne6+ {[%emt 0:00:14]} Kh6 {[%emt 0:00:02]} 56. f4 {[%emt 0:00:01]} Bd5 {[%emt 0:00:17]} 57. Kf6 {[%emt 0:00:08]} Ba2 {[%emt 0:00:02]} 58. Nc5 {[%emt 0:00:23]} Bb1 {[%emt 0:00:03]} 59. Nd7 {[%emt 0:00:02]} Kh7 {[%emt 0:00:04]} 60. Nf8+ {[%emt 0:00:09]} Kh6 {[%emt 0:00:03]} 61. Ne6 $2 {[%emt 0:00:04]} (61. Kf7 {mates} Ba2+ 62. Kf6 Bb1 63. Ne6 Bf5 64. Kf7 Bb1 65. Nd4 Ba2+ 66. Kf6) 61... Kh7 $2 {[%emt 0:00:05][%mdl 8192]} (61... Ba2 $11) 62. Nd4 {[%emt 0:00:04]} Bd3 {[%emt 0:00:11]} 63. Kg5 {[%emt 0:00:08]} Kg7 {[%emt 0:00:07]} 64. f5 {[%emt 0:00:03]} gxf5 {[%emt 0:00:05]} 65. Nxf5+ {[%emt 0:00:02]} Kf7 {[%emt 0:00:02]} 66. Nd4 {[%emt 0:00:07]} Bg6 {[%emt 0:00:11]} 67. Ne2 {[%emt 0:00:01]} Be4 {[%emt 0:00:05]} 68. Nf4 {[%emt 0:00:01]} ({Not} 68. Kxh5 Bf3+ 69. Kg5 Bxe2 $11) 68... Bf3 {[%emt 0:00:02]} 69. Nxh5 {[%emt 0:00:02]} Bd1 {[%emt 0:00:02]} 70. Nf4 {[%emt 0:00:01]} Bf3 {[%emt 0:00:02]} 71. g4 {[%emt 0:00:10]} Bd1 {[%emt 0:00:02]} 72. h5 {[%emt 0:00:05]} Bf3 {[%emt 0:00:06]} 73. Kf5 {[%emt 0:00:11]} Bd1 {[%emt 0:00:01]} 74. g5 {[%emt 0:00:08]} Bc2+ {[%emt 0:00:03]} 75. Ke5 {[%emt 0:00:08]} Bb1 {[%emt 0:00:01]} 76. Ne2 {[%emt 0:00:22]} Bc2 {[%emt 0:00:03]} 77. Kf4 {[%emt 0:00:06]} Bd1 {[%emt 0:00:05]} 78. Ng3 {[%emt 0:00:03]} Bc2 {[%emt 0:00:02]} 79. Ne4 {[%emt 0:00:08]} Bd3 {[%emt 0:00:14]} 80. Kf5 {[%emt 0:00:10]} Bc2 {[%emt 0:00:06]} 81. h6 {[%emt 0:00:02]} 1-0

[Event "Polish University-ch Teams 2024"]
[Site "Lublin"]
[Date "2024.02.24"]
[Round "4.8"]
[White "Niedbala, Bartlomiej"]
[Black "Szustakowski, Antoni"]
[Result "1-0"]
[ECO "C11"]
[WhiteElo "2382"]
[BlackElo "2354"]
[Annotator "RC"]
[PlyCount "61"]
[EventDate "2024.02.22"]
[EventType "team-tourn"]
[EventCountry "POL"]
[SourceTitle "playchess.com"]
[Source "ChessBase"]
[SourceQuality "1"]
[TimeControl "900+5"]

1. e4 {[%emt 0:00:02]} e6 {[%emt 0:00:03]} 2. d4 {[%emt 0:00:03]} d5 {[%emt 0:00:02]} 3. Nc3 {[%emt 0:00:03]} Nf6 {[%emt 0:00:04]} 4. e5 {[%emt 0:00:01]} Nfd7 {[%emt 0:00:01]} 5. f4 {[%emt 0:00:02]} c5 {[%emt 0:00:02]} 6. Nf3 {[%emt 0:00:02]} Nc6 {[%emt 0:00:01]} 7. Be3 {[%emt 0:00:02]} a6 {[%emt 0:00:01]} 8. a3 {[%emt 0:00:22]} cxd4 {[%emt 0:00:06]} 9. Nxd4 {[%emt 0:00:03]} Bc5 {[%emt 0:00:01]} 10. Be2 {[%emt 0:15:15]} O-O {[%emt 0:00:50]} 11. Qd2 {[%emt 0:00:00]} Nxd4 {[%emt 0:05:33]} 12. Bxd4 {[%emt 0:00:00]} Bxd4 {[%emt 0:00:04]} 13. Qxd4 {[%emt 0:00:00]} f6 {[%emt 0:00:01]} 14. exf6 {[%emt 0:00:00]} Qxf6 {[%emt 0:00:10]} 15. Qxf6 {[%emt 0:00:00]} Nxf6 {[%emt 0:00:46]} 16. O-O-O {[%emt 0:00:00]} Bd7 {[%emt 0:00:22]} 17. Bf3 {[%emt 0:00:00]} Bc6 {[%emt 0:00:59]} 18. Rhe1 {[%emt 0:00:00]} Rae8 {[%emt 0:00:03]} 19. g3 {[%emt 0:00:00]} h6 {[%emt 0:02:18]} 20. h4 {[%emt 0:00:00]} Rf7 {[%emt 0:01:22]} 21. Re5 {[%emt 0:00:00]} Nd7 {[%emt 0:00:30]} 22. Re3 {[%emt 0:00:00]} Nf6 {[%emt 0:00:39]} 23. Ne2 {[%emt 0:00:00]} Ne4 {[%emt 0:00:23]} 24. Bh5 {[%emt 0:00:00]} Rc7 {[%emt 0:00:01]} 25. Bxe8 {[%emt 0:00:00]} Bxe8 {[%emt 0:00:01]} 26. f5 {[%emt 0:00:00]} Ba4 {[%emt 0:01:37]} 27. b3 {[%emt 0:00:00]} Bb5 {[%emt 0:00:03]} 28. fxe6 {[%emt 0:00:00]} Bxe2 {[%emt 0:00:02]} 29. Rxd5 {[%emt 0:00:00]} Nc3 {[%emt 0:00:34]} 30. e7 {[%emt 0:00:00]} Bb5 {[%emt 0:00:07]} 31. Rxb5 {[%emt 0:00:00]} 1-0

[Event "Polish University-ch Teams 2024"]
[Site "Lublin"]
[Date "2024.02.24"]
[Round "4.9"]
[White "Koziorowicz, Michal"]
[Black "Hasterok, Mateusz"]
[Result "1-0"]
[ECO "B40"]
[WhiteElo "2324"]
[BlackElo "2150"]
[Annotator "RC"]
[PlyCount "135"]
[EventDate "2024.02.22"]
[EventType "team-tourn"]
[EventCountry "POL"]
[SourceTitle "playchess.com"]
[Source "ChessBase"]
[SourceQuality "1"]
[TimeControl "900+5"]

1. e4 {[%emt 0:00:01]} c5 {[%emt 0:00:01]} 2. Nf3 {[%emt 0:00:02]} e6 {[%emt 0:00:01]} 3. g3 {[%emt 0:00:06]} Nc6 {[%emt 0:00:05]} 4. Bg2 {[%emt 0:00:03]} Nf6 {[%emt 0:00:03]} 5. Nc3 {[%emt 0:00:01]} d5 {[%emt 0:00:13]} 6. exd5 {[%emt 0:00:06]} Nxd5 {[%emt 0:00:13]} 7. Qe2 {[%emt 0:00:50]} Be7 {[%emt 0:01:04]} 8. O-O {[%emt 0:00:06]} Ncb4 {[%emt 0:00:42]} 9. Nxd5 {[%emt 0:00:32]} Nxd5 {[%emt 0:00:07]} 10. d4 {[%emt 0:00:28]} O-O {[%emt 0:00:33]} 11. c4 {[%emt 0:00:18]} Nf6 {[%emt 0:00:13]} 12. Rd1 {[%emt 0:00:21]} Qb6 {[%emt 0:02:03]} 13. Be3 {[%emt 0:00:17]} Ng4 {[%emt 0:00:10]} 14. dxc5 {[%emt 0:00:04]} Bxc5 {[%emt 0:00:02]} 15. Bxc5 {[%emt 0:00:04]} Qxc5 {[%emt 0:00:00]} 16. a3 {[%emt 0:00:32]} Qe7 {[%emt 0:01:08]} 17. Ne5 {[%emt 0:01:07]} Nxe5 {[%emt 0:00:23]} 18. Qxe5 {[%emt 0:00:03]} f6 {[%emt 0:01:01]} 19. Qd6 {[%emt 0:00:15]} Qxd6 {[%emt 0:00:01]} 20. Rxd6 {[%emt 0:00:03]} Kf7 {[%emt 0:00:02]} 21. Bxb7 {[%emt 0:00:17]} Ke7 {[%emt 0:00:39]} 22. Bxa8 {[%emt 0:00:09]} Kxd6 {[%emt 0:00:01]} 23. b4 {[%emt 0:00:44]} Ba6 {[%emt 0:00:35]} 24. c5+ {[%emt 0:01:52]} Kc7 {[%emt 0:00:01]} 25. Bf3 {[%emt 0:00:08]} e5 {[%emt 0:00:43]} 26. a4 {[%emt 0:00:55]} Bd3 {[%emt 0:00:02]} 27. b5 {[%emt 0:01:08]} e4 {[%emt 0:00:03]} 28. Bg2 {[%emt 0:00:01]} Rd8 {[%emt 0:00:13]} 29. Rd1 {[%emt 0:00:27]} Rd5 {[%emt 0:00:09]} 30. c6 {[%emt 0:01:11]} f5 {[%emt 0:00:21]} 31. Bf1 {[%emt 0:00:11]} Rd4 {[%emt 0:00:11]} 32. Bxd3 {[%emt 0:00:06]} exd3 {[%emt 0:00:02]} 33. Kg2 {[%emt 0:00:31]} Kb6 {[%emt 0:00:05]} 34. Kf3 {[%emt 0:00:11]} g5 {[%emt 0:00:40]} 35. Ke3 {[%emt 0:00:08]} Rxa4 {[%emt 0:00:02]} 36. Rxd3 {[%emt 0:00:03]} Kxb5 {[%emt 0:00:27]} 37. c7 {[%emt 0:00:35]} Rc4 {[%emt 0:00:02]} 38. Rd5+ {[%emt 0:00:59]} Kb6 {[%emt 0:01:09]} 39. Rxf5 {[%emt 0:00:03]} Rxc7 {[%emt 0:00:51]} 40. Rxg5 {[%emt 0:00:02]} a5 {[%emt 0:00:03]} 41. Rg8 {[%emt 0:00:38]} a4 {[%emt 0:01:01]} 42. Ra8 {[%emt 0:00:05]} Kb5 {[%emt 0:00:08]} 43. f4 {[%emt 0:00:10]} Kb4 {[%emt 0:00:05]} 44. f5 {[%emt 0:00:32]} a3 {[%emt 0:00:50]} 45. g4 {[%emt 0:00:24]} Kb3 {[%emt 0:00:08]} 46. f6 {[%emt 0:00:53]} a2 {[%emt 0:00:31]} 47. h4 {[%emt 0:00:54]} Rc3+ {[%emt 0:00:07]} 48. Kf4 {[%emt 0:00:21]} Rc4+ {[%emt 0:00:01]} 49. Kg5 {[%emt 0:00:01]} Ra4 {[%emt 0:00:01]} 50. Rxa4 {[%emt 0:00:01]} Kxa4 {[%emt 0:00:01]} 51. f7 {[%emt 0:00:01]} a1=Q {[%emt 0:00:08]} 52. f8=Q {[%emt 0:00:25]} Qe5+ {[%emt 0:00:14]} 53. Kh6 {[%emt 0:00:00]} Qg3 {[%emt 0:00:19]} 54. Kh5 {[%emt 0:00:00]} Qc7 {[%emt 0:00:17]} 55. Qf5 {[%emt 0:00:03]} Qg7 {[%emt 0:00:12]} 56. g5 {[%emt 0:00:07]} Kb4 {[%emt 0:00:33]} 57. Qf6 {[%emt 0:00:02]} Qg8 {[%emt 0:00:09]} 58. Kh6 {[%emt 0:00:01]} Kc5 {[%emt 0:00:09]} 59. Qe7+ {[%emt 0:00:03]} Kd5 {[%emt 0:00:07]} 60. Qxh7 {[%emt 0:00:03]} Qe6+ {[%emt 0:00:03]} 61. Qg6 {[%emt 0:00:01]} Qe7 {[%emt 0:00:05]} 62. Qf6 {[%emt 0:00:02]} Qe1 {[%emt 0:00:03]} 63. h5 {[%emt 0:00:01]} Qe3 {[%emt 0:00:06]} 64. Kh7 {[%emt 0:00:03]} Qe8 {[%emt 0:00:04]} 65. g6 {[%emt 0:00:05]} Qe4 {[%emt 0:00:04]} 66. Qf7+ {[%emt 0:00:06]} Kd6 {[%emt 0:00:03]} 67. h6 {[%emt 0:00:02]} Qc2 {[%emt 0:00:06]} 68. Kh8 {[%emt 0:00:03]} 1-0